bitfinex/quotes_BTCUSD_20240717
["timestamp","ask_amount","ask_price","bid_price","bid_amount"]
[1721205470365,0.001,65481.0,65480.0,1.53153154]
[1721205470777,0.001,65481.0,65480.0,1.22609554]
[1721205471823,0.001,65481.0,65480.0,1.83696754]
[1721205472073,0.001,65481.0,65480.0,2.59120939]
[1721205472239,0.001,65481.0,65480.0,2.28576895]
[1721205472443,0.001,65481.0,65480.0,2.28576581]
[1721205473386,0.001,65481.0,65480.0,2.28076581]
[1721205473592,0.002,65481.0,65480.0,2.29476581]
[1721205474012,0.002,65481.0,65480.0,1.98932981]
[1721205474208,0.4798,65491.0,65490.0,0.763475]
[1721205474487,0.04942666,65494.0,65493.0,0.458064]
[1721205474640,0.00084,65496.0,65493.0,0.458064]
[1721205474641,0.00084,65496.0,65495.0,0.152683]
[1721205474849,0.00084,65496.0,65495.0,0.46501243]
[1721205475049,0.00084,65496.0,65495.0,0.77037843]
[1721205476043,0.00084,65496.0,65495.0,0.00696343]
[1721205476245,0.00084,65496.0,65492.0,0.15545897]
[1721205476450,0.00084,65496.0,65493.0,0.00697491]
[1721205476706,0.00084,65496.0,65495.0,0.152683]
[1721205477568,0.00084,65496.0,65495.0,0.158683]
[1721205477569,0.00184,65496.0,65495.0,0.158683]
[1721205477770,0.00184,65496.0,65495.0,0.464049]
[1721205478141,0.00184,65496.0,65495.0,0.47401243]
[1721205478552,0.00179,65496.0,65495.0,0.01596343]
[1721205478747,0.00179,65496.0,65495.0,0.16864643]
[1721205478925,0.00179,65496.0,65495.0,0.01596343]
[1721205479572,0.154471,65496.0,65495.0,0.01596343]
[1721205479738,0.537533,65496.0,65495.0,0.009]
[1721205480527,0.842895,65496.0,65495.0,0.009]
[1721205480774,0.905295,65496.0,65495.0,0.009]
[1721205480947,0.599933,65496.0,65495.0,0.009]
[1721205481581,0.14189,65496.0,65495.0,0.009]
[1721205481785,0.07949,65496.0,65495.0,0.009]
[1721205481959,0.00179,65496.0,65495.0,0.009]
[1721205482158,0.00179,65496.0,65495.0,0.161683]
[1721205482360,0.00179,65496.0,65495.0,0.009]
[1721205482560,0.00179,65496.0,65495.0,0.16864643]
[1721205482764,0.00179,65496.0,65495.0,0.01596343]
[1721205483553,0.00179,65496.0,65495.0,0.16864643]
[1721205484393,0.00179,65496.0,65495.0,0.01596343]
[1721205485877,0.00179,65496.0,65495.0,0.16864643]
[1721205486027,0.00179,65496.0,65495.0,0.92257843]
[1721205486231,0.00179,65496.0,65495.0,1.22794443]
[1721205494564,0.00179,65496.0,65495.0,1.22711317]
[1721205495176,0.00179,65496.0,65495.0,0.77854717]
[1721205496407,0.00179,65496.0,65495.0,1.08391317]
[1721205497600,0.00179,65496.0,65495.0,0.47318117]
[1721205498192,0.00179,65496.0,65495.0,0.16781517]
[1721205499027,0.00179,65496.0,65495.0,0.01513217]
[1721205499798,0.00179,65496.0,65495.0,0.16781517]
[1721205502500,0.00179,65496.0,65495.0,0.01513217]
[1721205502696,0.46243302,65496.0,65495.0,0.01513217]
[1721205502923,1.134457,65496.0,65495.0,0.00816874]
[1721205503351,1.15834694,65496.0,65495.0,0.00816874]
[1721205503729,1.15834694,65496.0,65483.0,0.00277097]
[1721205503730,0.152696,65490.0,65483.0,0.00277097]
[1721205503926,0.305386,65491.0,65482.0,0.152712]
[1721205503927,0.152697,65489.0,65482.0,0.152712]
[1721205504140,0.152697,65489.0,65484.0,0.00722658]
[1721205504349,0.152697,65489.0,65483.0,0.00723232]
[1721205504597,0.152697,65489.0,65485.0,0.00722083]
[1721205504818,0.1527,65488.0,65484.0,0.00722658]
[1721205505089,0.305393,65490.0,65485.0,0.00722083]
[1721205505090,0.305404,65487.0,65485.0,0.00722083]
[1721205505294,0.305404,65487.0,65483.0,0.003]
[1721205505295,0.152707,65485.0,65483.0,0.003]
[1721205505503,0.3054,65488.0,65483.0,0.003]
[1721205505504,0.152709,65484.0,65483.0,0.003]
[1721205505870,0.233409,65484.0,65483.0,0.003]
[1721205506097,0.0807,65484.0,65483.0,0.003]
[1721205506247,0.001,65489.0,65483.0,0.003]
[1721205506248,0.0817,65489.0,65483.0,0.003]
[1721205506449,0.152706,65486.0,65484.0,0.00722658]
[1721205506656,0.152707,65485.0,65483.0,0.003]
[1721205506876,0.152707,65485.0,65484.0,0.00722658]
[1721205507096,0.152707,65485.0,65482.0,0.007]
[1721205507308,0.152707,65485.0,65483.0,0.00723232]
[1721205507705,0.305413,65485.0,65473.0,0.305465]
[1721205507917,0.152711,65483.0,65477.0,0.00277097]
[1721205508121,0.310413,65485.0,65477.0,0.00277097]
[1721205508122,0.152709,65484.0,65477.0,0.00277097]
[1721205508377,0.152709,65484.0,65478.0,0.00726103]
[1721205509176,0.003,65485.0,65479.0,0.00277097]
[1721205509358,0.003,65485.0,65479.0,0.15272]
[1721205509803,0.003,65485.0,65484.0,0.458127]
[1721205510012,0.003,65485.0,65483.0,0.152711]
[1721205510180,0.003,65485.0,65480.0,0.305436]
[1721205510181,0.005,65485.0,65484.0,0.46535358]
[1721205510560,0.0495983,65491.0,65484.0,0.31264458]
[1721205510769,0.0495983,65491.0,65486.0,0.152703]
[1721205511081,0.0495983,65491.0,65487.0,0.00720935]
[1721205511230,0.4798,65492.0,65487.0,0.00720935]
[1721205511426,0.00079,65496.0,65487.0,0.00720935]
[1721205511427,0.00079,65496.0,65495.0,0.152683]
[1721205511630,0.00079,65496.0,65495.0,0.16009684]
[1721205511834,0.00079,65496.0,65495.0,0.00741384]
[1721205512459,0.152684,65495.0,65485.0,0.305411]
[1721205512790,0.152684,65495.0,65487.0,0.152701]
[1721205513168,0.152684,65495.0,65488.0,0.00277097]
[1721205513768,0.152684,65495.0,65489.0,0.00744828]
[1721205514089,0.009,65492.0,65487.0,0.153701]
[1721205514288,0.017,65492.0,65489.0,0.152696]
[1721205514492,0.017,65492.0,65490.0,0.00744254]
[1721205514493,0.008,65492.0,65490.0,0.00744254]
[1721205514699,0.152683,65495.0,65487.0,0.1527]
[1721205514902,0.160683,65495.0,65488.0,0.01222499]
[1721205515100,0.166683,65495.0,65488.0,0.00945402]
[1721205515465,0.166683,65495.0,65488.0,0.00845402]
[1721205515819,0.160683,65495.0,65488.0,0.00845402]
[1721205516013,0.160683,65495.0,65488.0,0.16115302]
[1721205516215,0.004,65495.0,65489.0,0.152696]
[1721205516394,0.002,65492.0,65489.0,0.152696]
[1721205516597,0.002,65492.0,65491.0,0.458077]
[1721205516785,0.002,65492.0,65491.0,0.152692]
[1721205516979,0.004,65495.0,65490.0,0.31283054]
[1721205517185,0.004,65495.0,65493.0,0.152687]
[1721205517186,0.01,65495.0,65493.0,0.152687]
[1721205517591,0.01,65495.0,65494.0,0.00741958]
[1721205517809,0.004,65495.0,65494.0,0.00741958]
[1721205518021,0.004,65495.0,65493.0,0.152687]
[1721205518224,0.00079,65496.0,65494.0,0.00741958]
[1721205518428,0.00079,65496.0,65493.0,0.152687]
[1721205518664,0.00079,65496.0,65494.0,0.00741958]
[1721205518848,0.00079,65496.0,65493.0,0.152687]
[1721205519062,0.00079,65496.0,65494.0,0.00941958]
[1721205519467,0.00079,65496.0,65494.0,0.00741958]
[1721205519673,0.00079,65496.0,65493.0,0.001]
[1721205519888,0.00079,65496.0,65494.0,0.00741958]
[1721205520081,0.00079,65496.0,65492.0,0.152689]
[1721205520451,0.00079,65496.0,65493.0,0.00742532]
[1721205520840,0.00179,65496.0,65493.0,0.00742532]
[1721205521081,0.00179,65496.0,65493.0,0.16011332]
[1721205521274,0.00079,65496.0,65493.0,0.16011332]
[1721205521477,0.00179,65496.0,65494.0,0.001]
[1721205521699,0.00179,65496.0,65495.0,0.00741384]
[1721205521904,0.00179,65496.0,65495.0,0.46546284]
[1721205523058,0.00079,65496.0,65495.0,0.46546284]
[1721205523258,0.00179,65496.0,65495.0,0.77082884]
[1721205523368,0.00179,65496.0,65495.0,1.48687967]
[1721205523580,0.00079,65496.0,65495.0,1.56797967]
[1721205523816,0.4798,65507.0,65506.0,0.906287]
[1721205524019,0.4798,65507.0,65506.0,1.211602]
[1721205524465,0.4798,65507.0,65506.0,0.763287]
[1721205524666,0.4798,65507.0,65504.0,0.152661]
[1721205524894,0.04574154,65518.0,65506.0,0.763287]
[1721205525041,0.4798,65519.0,65518.0,0.152629]
[1721205525252,0.4798,65519.0,65518.0,0.1607147]
[1721205525888,0.4798,65519.0,65518.0,0.4659737]
[1721205526439,0.4798,65519.0,65518.0,0.7722327]
[1721205526642,0.4798,65519.0,65518.0,0.4659737]
[1721205526828,0.4798,65519.0,65518.0,0.0080857]
[1721205527183,0.4798,65519.0,65518.0,0.152629]
[1721205527184,0.4848,65519.0,65518.0,0.152629]
[1721205527395,1.084281,65519.0,65518.0,0.001]
[1721205527734,1.389535,65519.0,65518.0,0.001]
[1721205527938,1.389535,65519.0,65503.0,0.305329]
[1721205527939,0.152636,65515.0,65506.0,0.152657]
[1721205528532,0.305275,65515.0,65501.0,0.305336]
[1721205528746,0.305275,65515.0,65498.0,0.385951]
[1721205528747,0.152637,65515.0,65507.0,0.152654]
[1721205528949,0.152637,65515.0,65503.0,0.305328]
[1721205528950,0.15264,65514.0,65505.0,0.152659]
[1721205529167,0.152642,65513.0,65508.0,0.00825733]
[1721205529401,0.152642,65513.0,65498.0,0.0806]
[1721205529402,0.00260002,65512.0,65499.0,0.152673]
[1721205529607,0.152656,65507.0,65500.0,0.00277097]
[1721205529851,0.212957,65506.0,65500.0,0.00277097]
[1721205529985,0.212957,65506.0,65499.0,0.152673]
[1721205530186,0.212957,65506.0,65500.0,0.00277097]
[1721205530387,0.0603,65506.0,65500.0,0.00277097]
[1721205530825,0.0603,65506.0,65500.0,0.00377097]
[1721205531088,0.212957,65506.0,65500.0,0.001]
[1721205531394,0.305321,65505.0,65499.0,0.004]
[1721205531537,0.152665,65503.0,65499.0,0.004]
[1721205531738,0.152665,65503.0,65500.0,0.002]
[1721205531960,0.152662,65504.0,65500.0,0.002]
[1721205532164,0.152665,65503.0,65500.0,0.002]
[1721205532323,0.305321,65505.0,65500.0,0.002]
[1721205532324,0.152669,65501.0,65500.0,0.002]
[1721205532540,0.458007,65501.0,65500.0,0.002]
[1721205532751,0.30533,65503.0,65500.0,0.002]
[1721205532991,0.305321,65505.0,65500.0,0.007]
[1721205533191,0.152663,65504.0,65496.0,0.15268]
[1721205533599,0.001,65501.0,65492.0,0.305377]
[1721205533770,0.001,65501.0,65494.0,0.152684]
[1721205534104,0.001,65501.0,65495.0,0.15545297]
[1721205534335,0.001,65501.0,65495.0,0.152682]
[1721205534557,0.152665,65503.0,65496.0,0.00277097]
[1721205534558,0.305333,65503.0,65496.0,0.00277097]
[1721205534830,0.305333,65503.0,65494.0,0.152685]
[1721205535135,0.152668,65502.0,65494.0,0.152685]
[1721205535334,0.305333,65503.0,65494.0,0.152685]
[1721205535556,0.305333,65503.0,65492.0,0.30538]
[1721205535557,0.152672,65500.0,65495.0,0.00277097]
[1721205535844,0.152672,65500.0,65493.0,0.00277097]
[1721205536020,0.152685,65495.0,65488.0,0.062]
[1721205536219,0.0603,65506.0,65486.0,0.233303]
[1721205536220,0.152672,65500.0,65492.0,0.152688]
[1721205536420,0.001,65501.0,65495.0,0.152681]
[1721205536744,0.001,65501.0,65493.0,0.0624]
[1721205536745,0.152667,65502.0,65494.0,0.152683]
[1721205536963,0.152667,65502.0,65495.0,0.15545397]
[1721205537166,0.152667,65502.0,65495.0,0.152683]
[1721205537167,0.002,65500.0,65495.0,0.152683]
[1721205537373,0.002,65500.0,65494.0,0.152684]
[1721205537574,0.152669,65501.0,65494.0,0.152684]
[1721205537751,0.152669,65501.0,65495.0,0.00277097]
[1721205537956,0.154669,65501.0,65494.0,0.152684]
[1721205539318,0.152669,65501.0,65494.0,0.152684]
[1721205539701,0.007,65501.0,65495.0,0.152682]
[1721205539906,0.007,65501.0,65500.0,1.1322]
[1721205540118,0.004,65501.0,65500.0,0.0635]
[1721205540251,0.004,65501.0,65492.0,0.05513833]
[1721205540453,0.009,65501.0,65497.0,0.00277097]
[1721205540663,0.009,65501.0,65498.0,0.152675]
[1721205540847,0.15266,65505.0,65498.0,0.152675]
[1721205541275,0.15266,65505.0,65500.0,0.002]
[1721205541444,0.152664,65503.0,65500.0,0.002]
[1721205541645,0.30532,65506.0,65500.0,0.002]
[1721205541646,0.152662,65504.0,65500.0,0.002]
[1721205541861,0.15266,65505.0,65500.0,0.002]
[1721205542079,0.152662,65504.0,65500.0,0.002]
[1721205542297,0.152662,65504.0,65500.0,0.006]
[1721205542298,0.152664,65504.0,65500.0,0.006]
[1721205542502,0.305325,65504.0,65500.0,0.002]
[1721205542710,0.152666,65503.0,65500.0,0.002]
[1721205543177,0.152666,65503.0,65496.0,0.00277097]
[1721205543354,0.152666,65503.0,65496.0,0.000924]
[1721205543355,0.1388,65503.0,65496.0,0.000924]
[1721205543561,0.152667,65502.0,65496.0,0.000924]
[1721205543996,0.152676,65498.0,65496.0,0.000924]
[1721205544208,0.152674,65499.0,65496.0,0.000924]
[1721205544439,0.152675,65499.0,65496.0,0.000924]
[1721205545010,0.152676,65498.0,65496.0,0.000924]
[1721205545619,0.152674,65499.0,65496.0,0.000924]
[1721205545829,0.152678,65497.0,65496.0,0.000924]
[1721205546556,0.001,65498.0,65496.0,0.005924]
[1721205546726,0.001,65498.0,65496.0,0.000924]
[1721205546727,0.152677,65498.0,65496.0,0.000924]
[1721205547432,0.152677,65498.0,65496.0,0.004924]
[1721205547934,0.152677,65498.0,65496.0,0.000924]
[1721205548113,0.152677,65498.0,65496.0,0.003924]
[1721205548508,0.305342,65501.0,65496.0,0.003924]
[1721205548509,0.152678,65497.0,65496.0,0.003924]
[1721205548711,0.458035,65497.0,65496.0,0.003924]
[1721205549546,0.152678,65497.0,65496.0,0.003924]
[1721205549758,0.152678,65497.0,65496.0,0.000924]
[1721205549923,0.458035,65497.0,65496.0,0.000924]
[1721205550133,0.458035,65497.0,65496.0,0.005924]
[1721205550687,0.459035,65497.0,65496.0,0.005924]
[1721205551064,0.462035,65497.0,65496.0,0.005924]
[1721205554408,1.072749,65497.0,65496.0,0.005924]
[1721205554821,1.515606,65497.0,65496.0,0.005924]
[1721205555045,1.66249692,65497.0,65496.0,0.005924]
[1721205555265,1.7310178,65497.0,65496.0,0.005924]
[1721205555616,1.73105288,65497.0,65496.0,0.005924]
[1721205556628,1.72805288,65497.0,65496.0,0.005924]
[1721205556830,1.74205288,65497.0,65496.0,0.006924]
[1721205557050,1.67249692,65497.0,65496.0,0.001924]
[1721205557256,1.79142551,65497.0,65496.0,0.002924]
[1721205557466,0.59592592,65497.0,65496.0,0.000924]
[1721205557690,1.196749,65497.0,65496.0,0.001924]
[1721205557868,1.210749,65497.0,65496.0,0.002924]
[1721205558068,1.210749,65497.0,65496.0,0.001924]
[1721205558069,1.196749,65497.0,65496.0,0.001924]
[1721205558297,1.196749,65497.0,65496.0,0.000924]
[1721205558298,1.168749,65497.0,65496.0,0.000924]
[1721205558711,1.182749,65497.0,65496.0,0.000924]
[1721205559615,1.261549,65497.0,65496.0,0.000924]
[1721205559815,1.35413124,65497.0,65496.0,0.000924]
[1721205560022,0.558035,65497.0,65496.0,0.000924]
[1721205560225,0.572035,65497.0,65496.0,0.001924]
[1721205560421,0.028,65497.0,65496.0,0.002924]
[1721205560658,0.028,65497.0,65496.0,0.155605]
[1721205560807,0.028,65497.0,65496.0,0.002924]
[1721205561001,0.152667,65502.0,65496.0,0.000924]
[1721205561479,0.012,65497.0,65496.0,0.001924]
[1721205561978,0.025,65497.0,65496.0,0.002924]
[1721205562238,0.483035,65497.0,65496.0,0.002924]
[1721205562667,0.471035,65497.0,65496.0,0.001924]
[1721205563135,0.471035,65497.0,65496.0,0.005924]
[1721205563355,0.458035,65497.0,65496.0,0.000924]
[1721205563566,0.156678,65497.0,65496.0,0.000924]
[1721205563802,0.156678,65497.0,65496.0,0.002924]
[1721205563803,0.004,65497.0,65496.0,0.002924]
[1721205564046,0.156678,65497.0,65496.0,0.002924]
[1721205564296,0.83059202,65497.0,65496.0,0.000924]
[1721205564526,1.05258172,65497.0,65496.0,0.000924]
[1721205564774,1.36293872,65497.0,65496.0,0.001924]
[1721205565417,1.35793872,65497.0,65496.0,0.000924]
[1721205565873,1.35393872,65497.0,65496.0,0.000924]
[1721205566084,1.44674543,65497.0,65496.0,0.000924]
[1721205566430,1.40105745,65497.0,65496.0,0.000924]
[1721205566653,1.44674543,65497.0,65496.0,0.000924]
[1721205566866,1.44774543,65497.0,65496.0,0.001924]
[1721205567079,1.40205745,65497.0,65496.0,0.001924]
[1721205567292,1.44974543,65497.0,65496.0,0.000924]
[1721205567494,1.43574543,65497.0,65496.0,0.000924]
[1721205567714,1.47258943,65497.0,65496.0,0.001924]
[1721205567920,1.44973183,65497.0,65496.0,0.001924]
[1721205568098,1.43573183,65497.0,65496.0,0.000924]
[1721205568301,1.43528114,65497.0,65496.0,0.000924]
[1721205568527,1.44928114,65497.0,65496.0,0.001924]
[1721205568975,1.46328114,65497.0,65496.0,0.001924]
[1721205569529,1.47728114,65497.0,65496.0,0.001924]
[1721205569762,1.78263814,65497.0,65496.0,0.001924]
[1721205569964,1.78262892,65497.0,65496.0,0.001924]
[1721205571483,1.78248477,65497.0,65496.0,0.001924]
[1721205571915,0.98780313,65497.0,65496.0,0.001924]
[1721205572112,0.9292817,65497.0,65496.0,0.001924]
[1721205572345,1.2346387,65497.0,65496.0,0.001924]
[1721205572958,0.6239247,65497.0,65496.0,0.001924]
[1721205573369,0.9292817,65497.0,65496.0,0.001924]
[1721205575356,0.6239247,65497.0,65496.0,0.001924]
[1721205575728,0.9292817,65497.0,65496.0,0.001924]
[1721205575932,1.2346387,65497.0,65496.0,0.001924]
[1721205576110,0.9522817,65497.0,65496.0,0.001924]
[1721205576312,1.2576387,65497.0,65496.0,0.001924]
[1721205576512,1.30333819,65497.0,65496.0,0.001924]
[1721205576720,1.36403819,65497.0,65496.0,0.001924]
[1721205577751,1.36489706,65497.0,65496.0,0.001924]
[1721205578100,1.35432499,65497.0,65496.0,0.001924]
[1721205580874,1.6245357,65497.0,65496.0,0.001924]
[1721205581124,1.71599382,65497.0,65496.0,0.001924]
[1721205581252,1.8557016,65497.0,65496.0,0.001924]
[1721205581454,1.8057016,65497.0,65496.0,0.001924]
[1721205581658,1.73710931,65497.0,65496.0,0.001924]
[1721205582391,1.43175231,65497.0,65496.0,0.001924]
[1721205583380,1.73710931,65497.0,65496.0,0.001924]
[1721205584152,1.80581119,65497.0,65496.0,0.001924]
[1721205584798,1.50045419,65497.0,65496.0,0.001924]
[1721205584979,1.05739719,65497.0,65496.0,0.001924]
[1721205585153,0.2194077,65497.0,65496.0,0.001924]
[1721205585364,0.04284,65497.0,65496.0,0.001924]
[1721205585571,0.04284,65497.0,65496.0,0.082624]
[1721205586380,0.01484,65497.0,65496.0,0.082624]
[1721205586796,0.02384,65497.0,65496.0,0.082624]
[1721205587000,0.00984,65497.0,65496.0,0.081624]
[1721205587429,0.00984,65497.0,65496.0,0.082624]
[1721205587430,0.02084,65497.0,65496.0,0.082624]
[1721205589423,0.02084,65497.0,65496.0,0.299005]
[1721205589858,0.02084,65497.0,65496.0,0.30640908]
[1721205590976,0.02084,65497.0,65496.0,0.15372808]
[1721205591630,0.173518,65497.0,65496.0,0.00932808]
[1721205591836,0.50276482,65497.0,65496.0,0.001924]
[1721205592038,0.80812182,65497.0,65496.0,0.001924]
[1721205594230,0.85387806,65497.0,65496.0,0.001924]
[1721205595287,1.25607443,65497.0,65496.0,0.001924]
[1721205595494,1.18744006,65497.0,65496.0,0.001924]
[1721205595709,1.25608623,65497.0,65496.0,0.001924]
[1721205595927,1.18744006,65497.0,65496.0,0.001924]
[1721205596372,1.28744006,65497.0,65496.0,0.001924]
[1721205596594,1.23647882,65497.0,65496.0,0.001924]
[1721205596829,1.37880511,65497.0,65496.0,0.001924]
[1721205598070,1.28727509,65497.0,65496.0,0.001924]
[1721205598418,1.37880511,65497.0,65496.0,0.001924]
[1721205598673,1.28727509,65497.0,65496.0,0.001924]
[1721205599155,1.37880511,65497.0,65496.0,0.001924]
[1721205600104,1.37888508,65497.0,65496.0,0.001924]
[1721205600967,1.0276425,65497.0,65496.0,0.001924]
[1721205601171,1.0506425,65497.0,65496.0,0.001924]
[1721205601368,1.35600153,65497.0,65496.0,0.001924]
[1721205601568,1.28735097,65497.0,65496.0,0.001924]
[1721205601722,1.37888508,65497.0,65496.0,0.001924]
[1721205602165,1.28735097,65497.0,65496.0,0.001924]
[1721205602367,1.28763529,65497.0,65496.0,0.001924]
[1721205602816,1.28763536,65497.0,65496.0,0.001924]
[1721205603485,1.35628792,65497.0,65496.0,0.001924]
[1721205603866,1.28763536,65497.0,65496.0,0.001924]
[1721205604001,1.35628786,65497.0,65496.0,0.001924]
[1721205604206,1.28763536,65497.0,65496.0,0.001924]
[1721205604443,1.35628845,65497.0,65496.0,0.001924]
[1721205605121,1.28763536,65497.0,65496.0,0.001924]
[1721205605576,1.28727697,65497.0,65496.0,0.001924]
[1721205606423,1.79627128,65497.0,65496.0,0.001924]
[1721205606631,1.78323397,65497.0,65496.0,0.001924]
[1721205607768,1.73323397,65497.0,65496.0,0.001924]
[1721205608700,1.68243582,65497.0,65496.0,0.001924]
[1721205608930,1.73327242,65497.0,65496.0,0.001924]
[1721205609139,1.78327242,65497.0,65496.0,0.001924]
[1721205609677,0.95895842,65497.0,65496.0,0.001924]
[1721205609903,1.05051075,65497.0,65496.0,0.001924]
[1721205610205,0.90812182,65497.0,65496.0,0.001924]
[1721205610530,0.95389776,65497.0,65496.0,0.001924]
[1721205610711,0.95389765,65497.0,65496.0,0.001924]
[1721205611113,0.95389804,65497.0,65496.0,0.001924]
[1721205611521,0.9538978,65497.0,65496.0,0.001924]
[1721205611808,0.1905058,65497.0,65496.0,0.001924]
[1721205611940,0.12084,65497.0,65496.0,0.001924]
[1721205612344,0.12084,65497.0,65496.0,0.0093473]
[1721205612345,0.578875,65497.0,65496.0,0.0093473]
[1721205612577,0.578875,65497.0,65496.0,0.001924]
[1721205612578,0.60276402,65497.0,65496.0,0.001924]
[1721205612777,0.90812102,65497.0,65496.0,0.001924]
[1721205612977,0.60276402,65497.0,65496.0,0.001924]
[1721205614782,0.578875,65497.0,65496.0,0.001924]
[1721205615172,0.60276404,65497.0,65496.0,0.001924]
[1721205615373,0.14472904,65497.0,65496.0,0.001924]
[1721205615578,0.02084,65497.0,65496.0,0.001924]
[1721205615780,0.02084,65497.0,65496.0,0.600067]
[1721205615978,0.02084,65497.0,65496.0,0.905429]
[1721205616182,0.02084,65497.0,65496.0,1.210791]
[1721205616595,0.02084,65497.0,65496.0,1.33757728]
[1721205616791,0.009,65497.0,65496.0,1.64193928]
[1721205617011,0.04939366,65514.0,65513.0,0.295141]
[1721205617254,0.04939366,65514.0,65513.0,0.1425]
[1721205617427,0.15263,65518.0,65513.0,0.1425]
[1721205617842,0.152639,65514.0,65513.0,0.1425]
[1721205618049,0.152639,65514.0,65496.0,0.001924]
[1721205618050,0.305278,65514.0,65507.0,0.1425]
[1721205618247,0.07914,65519.0,65496.0,0.001924]
[1721205618248,0.152664,65503.0,65502.0,0.1374]
[1721205618447,0.152662,65504.0,65502.0,0.1374]
[1721205618904,0.152664,65503.0,65502.0,0.1374]
[1721205619071,0.152661,65505.0,65502.0,0.1374]
[1721205619478,0.305311,65507.0,65502.0,0.1374]
[1721205619682,0.15266,65505.0,65502.0,0.1374]
[1721205620143,0.152664,65503.0,65502.0,0.0617]
[1721205620317,0.307329,65503.0,65498.0,0.064]
[1721205620525,0.459995,65503.0,65498.0,0.064]
[1721205621067,0.152667,65502.0,65498.0,0.064]
[1721205621482,0.004,65505.0,65498.0,0.064]
[1721205621701,0.30531,65508.0,65498.0,0.064]
[1721205621702,0.152673,65500.0,65498.0,0.064]
[1721205621827,0.305334,65502.0,65498.0,0.064]
[1721205621828,0.152674,65499.0,65498.0,0.064]
[1721205622026,0.152671,65501.0,65498.0,0.064]
[1721205622272,0.152674,65499.0,65498.0,0.064]
[1721205622472,0.30532,65506.0,65496.0,0.000924]
[1721205622473,0.152676,65498.0,65496.0,0.000924]
[1721205622682,0.0853,65507.0,65496.0,0.000924]
[1721205622683,0.46063502,65497.0,65496.0,0.000924]
[1721205623207,0.458035,65497.0,65496.0,0.000924]
[1721205624155,0.458035,65497.0,65496.0,0.001924]
[1721205624363,0.763392,65497.0,65496.0,0.001924]
[1721205624967,0.458049,65495.0,65494.0,0.02962954]
[1721205626394,0.763415,65495.0,65494.0,0.02962954]
[1721205626621,0.767415,65495.0,65494.0,0.02962954]
[1721205626784,0.763415,65495.0,65494.0,0.02962954]
[1721205626985,0.458049,65495.0,65494.0,0.02962954]
[1721205627228,0.458049,65495.0,65494.0,0.03062954]
[1721205627229,0.465049,65495.0,65494.0,0.03062954]
[1721205627830,0.458049,65495.0,65494.0,0.02962954]
[1721205628091,0.458049,65495.0,65494.0,0.001]
[1721205628092,0.771415,65495.0,65494.0,0.001]
[1721205628702,0.831515,65495.0,65494.0,0.001]
[1721205628911,1.36007222,65495.0,65494.0,0.001]
[1721205629341,1.41577284,65495.0,65494.0,0.001]
[1721205629973,1.41277284,65495.0,65494.0,0.001]
[1721205630140,1.46277284,65495.0,65494.0,0.001]
[1721205630346,1.76813884,65495.0,65494.0,0.001]
[1721205630541,1.85958572,65495.0,65494.0,0.001]
[1721205630813,0.05,65494.0,65492.0,0.000924]
[1721205630937,1.18689181,65493.0,65492.0,0.000924]
[1721205631136,1.27421875,65493.0,65492.0,0.000924]
[1721205631387,1.57959475,65493.0,65492.0,0.000924]
[1721205631570,1.64817932,65493.0,65492.0,0.000924]
[1721205631970,1.69817932,65493.0,65492.0,0.000924]
[1721205632258,1.62959475,65493.0,65492.0,0.000924]
[1721205632385,1.72802913,65493.0,65492.0,0.001924]
[1721205632585,1.63659475,65493.0,65492.0,0.001924]
[1721205632787,1.72802831,65493.0,65492.0,0.001924]
[1721205632995,1.63659475,65493.0,65492.0,0.001924]
[1721205633231,1.72101796,65493.0,65492.0,0.000924]
[1721205633428,1.67101796,65493.0,65492.0,0.000924]
[1721205633680,1.57959475,65493.0,65492.0,0.000924]
[1721205634005,1.57954574,65493.0,65492.0,0.000924]
[1721205634592,1.72096496,65493.0,65492.0,0.000924]
[1721205634802,1.67410246,65493.0,65492.0,0.000924]
[1721205634968,1.72986112,65493.0,65492.0,0.000924]
[1721205635175,1.63844853,65493.0,65492.0,0.000924]
[1721205635380,1.73485312,65493.0,65492.0,0.000924]
[1721205635883,1.64344853,65493.0,65492.0,0.000924]
[1721205636190,1.59344853,65493.0,65492.0,0.000924]
[1721205636498,1.60744853,65493.0,65492.0,0.000924]
[1721205637237,1.67599032,65493.0,65492.0,0.000924]
[1721205637439,1.65744853,65493.0,65492.0,0.000924]
[1721205637840,1.60744853,65493.0,65492.0,0.000924]
[1721205638043,1.65744853,65493.0,65492.0,0.000924]
[1721205638253,1.72598395,65493.0,65492.0,0.000924]
[1721205638479,1.67598395,65493.0,65492.0,0.000924]
[1721205639100,1.72598395,65493.0,65492.0,0.000924]
[1721205639367,1.67598395,65493.0,65492.0,0.000924]
[1721205640209,1.72598395,65493.0,65492.0,0.000924]
[1721205640395,1.7251754,65493.0,65492.0,0.000924]
[1721205643463,1.60168324,65493.0,65492.0,0.000924]
[1721205643672,1.7254738,65493.0,65492.0,0.000924]
[1721205644089,1.72540932,65493.0,65492.0,0.000924]
[1721205644509,2.03078532,65493.0,65492.0,0.000924]
[1721205644906,1.96227681,65493.0,65492.0,0.000924]
[1721205645107,2.07645601,65493.0,65492.0,0.000924]
[1721205645427,1.96227681,65493.0,65492.0,0.000924]
[1721205646405,2.46227681,65493.0,65492.0,0.000924]
[1721205646632,0.05,65480.0,65470.0,0.0793]
[1721205646758,1.37457,65475.0,65470.0,0.0793]
[1721205646963,1.47457,65475.0,65470.0,0.0793]
[1721205647167,1.49757,65475.0,65470.0,0.0793]
[1721205647939,1.49757,65475.0,65469.0,0.069196]
[1721205648176,1.85303,65475.0,65469.0,0.009196]
[1721205648387,2.07478252,65475.0,65469.0,0.009196]